fUST/lending_fUST_20241213
["ID","MTS","AMOUNT","RATE_DAILY","PERIOD"]
[345200657,1734082240805,-500.0,0.00027397,7]
[345200658,1734082240816,-1855.66,0.00027397,7]
[345200659,1734082240831,-500.0,0.00027397,7]
[345200661,1734082240841,-500.0,0.00027397,7]
[345200663,1734082240853,-500.0,0.00027397,7]
[345200664,1734082240863,-655.91,0.00027397,7]
[345200665,1734082240872,-500.0,0.00027397,2]
[345200666,1734082240882,-1264.63,0.00027397,7]
[345200667,1734082240891,-567.13,0.00027397,7]
[345200668,1734082240900,-500.0,0.00027397,7]
[345200669,1734082240909,-500.0,0.00027397,7]
[345200670,1734082240919,-1497.2,0.00027397,7]
[345200671,1734082240928,-500.0,0.00027397,7]
[345200672,1734082240938,-500.0,0.00027397,7]
[345200673,1734082240947,-500.0,0.00027397,7]
[345200674,1734082240957,-1087.11,0.00027397,7]
[345200675,1734082240967,-500.0,0.00027397,7]
[345200676,1734082240977,-500.0,0.00027397,7]
[345200677,1734082240987,-500.0,0.00027397,7]
[345200678,1734082240996,-1194.55,0.00027397,7]
[345200679,1734082241006,-500.0,0.00027397,7]
[345200680,1734082241016,-500.0,0.00027397,7]
[345200681,1734082241025,-500.0,0.00027397,7]
[345200682,1734082241035,-4419.84,0.00027397,7]
[345200683,1734082241045,-500.0,0.00027397,7]
[345200684,1734082241054,-500.0,0.00027397,7]
[345200685,1734082241064,-500.0,0.00027397,7]
[345200686,1734082241088,-500.0,0.00027397,7]
[345200687,1734082241098,-606.11,0.00027397,7]
[345200688,1734082241107,-537.23,0.00027397,7]
[345200689,1734082241116,-500.0,0.00027397,7]
[345200690,1734082241126,-2067.93,0.00027397,7]
[345200691,1734082241135,-500.0,0.00027397,7]
[345200692,1734082241145,-598.7,0.00027397,7]
[345200693,1734082241154,-500.0,0.00027397,7]
[345200694,1734082241164,-500.0,0.00027397,7]
[345200695,1734082241173,-720.17,0.00027397,7]
[345200696,1734082241182,-500.0,0.00027397,7]
[345200697,1734082241192,-500.0,0.00027397,7]
[345200698,1734082241201,-500.0,0.00027397,7]
[345200699,1734082241211,-2000.0,0.00027397,7]
[345200700,1734082241220,-500.0,0.00027397,7]
[345200701,1734082241229,-929.77,0.00027397,7]
[345200702,1734082241238,-1437.8,0.00027397,7]
[345200703,1734082241247,-500.0,0.00027397,7]
[345200704,1734082241257,-1492.27,0.00027397,7]
[345200705,1734082241266,-500.0,0.00027397,7]
[345200706,1734082241276,-904.34,0.00027397,7]
[345200707,1734082241285,-500.0,0.00027397,7]
[345200708,1734082241295,-500.0,0.00027397,7]
[345200709,1734082241305,-796.14,0.00027397,7]
[345200710,1734082241315,-500.0,0.00027397,7]
[345200711,1734082241332,-670.53,0.00027397,7]
[345200712,1734082241342,-500.0,0.00027397,7]
[345200713,1734082241352,-500.0,0.00027397,7]
[345200714,1734082241362,-500.0,0.00027397,7]
[345200715,1734082241371,-500.0,0.00027397,7]
[345200716,1734082241381,-500.0,0.00027397,7]
[345200717,1734082241390,-534.92,0.00027397,7]
[345200718,1734082241399,-500.0,0.00027397,7]
[345200719,1734082241408,-500.0,0.00027397,7]
[345200720,1734082241418,-500.0,0.00027397,7]
[345200721,1734082241427,-7922.86,0.00027397,7]
[345200722,1734082241436,-919.13,0.00027397,7]
[345200723,1734082241446,-969.97,0.00027397,7]
[345200724,1734082241455,-500.0,0.00027397,7]
[345200725,1734082241465,-199.45781381,0.00027397,2]
[345200726,1734082241474,-590.31,0.000274,2]
[345200727,1734082241483,-1032.8,0.00027445,15]
[345200728,1734082241493,-5293.57091577,0.000275,2]
[345200729,1734082241502,-5000.0,0.00027639,7]
[345200730,1734082241512,-362.4019187,0.0002767,2]
[345200731,1734082241521,-199.34162157,0.0002767,2]
[345200732,1734082241531,-500.0,0.00027671,7]
[345200733,1734082241541,-500.0,0.00027671,7]
[345200734,1734082241550,-500.0,0.00027671,7]
[345200735,1734082241560,-500.0,0.00027671,7]
[345200736,1734082241576,-500.0,0.00027671,7]
[345200737,1734082241585,-500.0,0.00027671,7]
[345200738,1734082241595,-500.0,0.00027671,7]
[345200739,1734082241605,-500.0,0.00027671,7]
[345200740,1734082241614,-500.0,0.00027671,7]
[345200741,1734082241623,-500.0,0.00027671,7]
[345200742,1734082241632,-620.15,0.00027671,7]
[345200743,1734082241642,-500.0,0.00027671,7]
[345200744,1734082241651,-500.0,0.00027671,7]
[345200745,1734082241660,-500.0,0.00027671,7]
[345200746,1734082241670,-500.0,0.00027671,7]
[345200747,1734082241679,-626.88,0.00027671,7]
[345200748,1734082241689,-500.0,0.00027671,7]
[345200749,1734082241699,-500.0,0.00027671,7]
[345200750,1734082241708,-500.0,0.00027671,7]
[345200751,1734082241718,-500.0,0.00027671,7]
[345200752,1734082241728,-500.0,0.00027671,7]
[345200753,1734082241737,-500.0,0.00027671,7]
[345200754,1734082241747,-500.0,0.00027671,7]
[345200755,1734082241758,-500.0,0.00027671,7]
[345200756,1734082241768,-500.0,0.00027671,7]
[345200757,1734082241781,-500.0,0.00027671,7]
[345200758,1734082241791,-500.0,0.00027671,7]
[345200759,1734082241800,-500.0,0.00027671,7]
[345200760,1734082241810,-500.0,0.00027671,7]
[345200761,1734082241826,-500.0,0.00027671,7]
[345200762,1734082241837,-500.0,0.00027671,7]
[345200763,1734082241847,-537.67513684,0.00027671,7]
[345200764,1734082241856,-509.83611144,0.00027671,7]
[345200765,1734082241866,-500.0,0.00027671,7]
[345200766,1734082241876,-500.0,0.00027671,7]
[345200767,1734082241885,-500.0,0.00027671,7]
[345200768,1734082241894,-500.0,0.00027671,7]
[345200769,1734082241903,-500.0,0.00027671,7]
[345200770,1734082241913,-500.0,0.00027671,7]
[345200771,1734082241923,-564.6095945,0.00027671,7]
[345200772,1734082241933,-1539.87,0.00027671,7]
[345200773,1734082241942,-500.0,0.00027671,7]
[345200774,1734082241952,-724.08,0.00027671,7]
[345200775,1734082241961,-500.0,0.00027671,7]
[345200776,1734082241971,-500.0,0.00027671,7]
[345200777,1734082241981,-500.0,0.00027671,7]
[345200778,1734082241991,-500.0,0.00027671,7]
[345200779,1734082242001,-500.0,0.00027671,7]
[345200780,1734082242010,-500.0,0.00027671,7]
[345200781,1734082242020,-500.0,0.00027671,7]
[345200782,1734082242029,-500.0,0.00027671,7]
[345200783,1734082242039,-500.0,0.00027671,7]
[345200784,1734082242048,-500.0,0.00027671,7]
[345200785,1734082242058,-555.39,0.00027671,7]
[345200786,1734082242073,-500.0,0.00027671,7]
[345200787,1734082242082,-500.0,0.00027671,7]
[345200788,1734082242092,-500.0,0.00027671,7]
[345200789,1734082242102,-500.0,0.00027671,7]
[345200790,1734082242111,-500.0,0.00027671,7]
[345200791,1734082242121,-598.76,0.00027671,7]
[345200792,1734082242131,-768.39,0.00027671,7]
[345200793,1734082242140,-646.02200818,0.00027671,7]
[345200794,1734082242149,-500.0,0.00027671,7]
[345200795,1734082242158,-500.0,0.00027671,7]
[345200796,1734082242168,-500.0,0.00027671,7]
[345200797,1734082242178,-500.0,0.00027671,7]
[345200798,1734082242187,-500.0,0.00027671,7]
[345200799,1734082242197,-500.0,0.00027671,7]
[345200800,1734082242207,-691.14,0.00027671,7]
[345200801,1734082242216,-635.27,0.00027671,7]
[345200802,1734082242226,-626.63870578,0.00027671,7]
[345200803,1734082242235,-500.0,0.00027671,7]
[345200804,1734082242245,-500.0,0.00027671,7]
[345200805,1734082242254,-500.0,0.00027671,7]
[345200806,1734082242264,-500.0,0.00027671,7]
[345200807,1734082242274,-500.0,0.00027671,7]
[345200808,1734082242284,-500.0,0.00027671,7]
[345200809,1734082242293,-500.0,0.00027671,7]
[345200810,1734082242302,-500.0,0.00027671,7]
[345200811,1734082242312,-500.0,0.00027671,7]
[345200812,1734082242328,-270.73668401,0.00027671,7]
[345200813,1734082242338,-500.0,0.00027671,7]
[345200814,1734082242348,-463.64685247,0.00027671,7]
[345200815,1734082242358,-879.28,0.00027671,7]
[345200816,1734082242367,-500.0,0.00027671,7]
[345200817,1734082242376,-500.0,0.00027671,7]
[345200818,1734082242387,-500.0,0.00027671,7]
[345200819,1734082242396,-250.71214706,0.00027671,7]
[345200820,1734082242405,-510.51,0.00027671,7]
[345200821,1734082242415,-751.89,0.00027671,7]
[345200822,1734082242426,-500.0,0.00027671,7]
[345200823,1734082242435,-500.0,0.00027671,7]
[345200824,1734082242445,-790.3,0.00027671,7]
[345200825,1734082242454,-565.02652417,0.00027671,7]
[345200826,1734082242466,-543.3,0.00027671,7]
[345200827,1734082242475,-652.12,0.00027671,7]
[345200828,1734082242485,-747.52,0.00027671,7]
[345200829,1734082242495,-500.0,0.00027671,7]
[345200830,1734082242504,-500.0,0.00027671,7]
[345200831,1734082242514,-500.0,0.00027671,7]
[345200832,1734082242524,-500.0,0.00027671,7]
[345200833,1734082242533,-436.18593359,0.00027671,7]
[345200834,1734082242542,-804.38,0.00027671,7]
[345200835,1734082242552,-500.0,0.00027671,7]
[345200836,1734082242562,-500.0,0.00027671,7]
[345200837,1734082242572,-834.25,0.00027671,7]
[345200838,1734082242581,-500.0,0.00027671,7]
[345200839,1734082242590,-500.0,0.00027671,7]
[345200840,1734082242600,-660.59,0.00027671,7]
[345200841,1734082242609,-545.94,0.00027671,7]
[345200842,1734082242619,-500.0,0.00027671,7]
[345200843,1734082242629,-551.31,0.00027671,7]
[345200844,1734082242639,-500.0,0.00027671,7]
[345200845,1734082242648,-570.37,0.00027671,7]
[345200846,1734082242658,-500.0,0.00027671,7]
[345200847,1734082242667,-500.0,0.00027671,7]
[345200848,1734082242677,-500.0,0.00027671,7]
[345200849,1734082242687,-500.0,0.00027671,7]
[345200850,1734082242696,-2273.69,0.00027671,7]
[345200851,1734082242706,-500.0,0.00027671,7]
[345200852,1734082242716,-668.04,0.00027671,7]
[345200853,1734082242726,-412.57519747,0.00027671,7]
[345200854,1734082242749,-87.42480253,0.00027671,7]
[345200855,1734082242759,-234.51519747,0.00027671,7]
[345200856,1734082242771,-481.98480253,0.00027671,7]
[345200857,1734082242784,-500.0,0.00027671,7]
[345200858,1734082242793,-54.14919747,0.00027671,7]
[345200859,1734082243162,-366.9598944,0.00027671,7]
[345200860,1734082243174,-78.89090813,0.00027671,7]
[345200861,1734082243183,-504.99,0.00027671,7]
[345200862,1734082243193,-284.97720175,0.00027671,7]
[345200863,1734082243205,-215.02279825,0.00027671,7]
[345200864,1734082243215,-284.96938259,0.00027671,7]
[345200865,1734082243227,-399.69061741,0.00027671,7]
[345200866,1734082243236,-123.90748252,0.00027671,7]
[345200867,1734082243249,-373.59894557,0.00027671,7]
[345200868,1734082243261,-2.49357191,0.00027671,7]
[345200869,1734082243271,-415.4837357,0.00027671,7]
[345200870,1734082243285,-84.5162643,0.00027671,7]
[345200871,1734082243294,-315.15723573,0.00027671,7]
[345200872,1734082243307,-1161.67431419,0.00027671,7]
[345200873,1734082243323,-609.13850025,0.00027671,7]
[345200874,1734082243334,-713.1655415,0.00027671,7]
[345200875,1734082243346,-440.12099988,0.00027671,7]
[345200876,1734082243357,-474.99320001,0.00027671,7]
[345200877,1734082243369,-667.86,0.00027671,7]
[345200878,1734082243381,-100.32020844,0.00027671,7]
[345200879,1734082243391,-410.89179156,0.00027671,7]
[345200880,1734082243408,-89.10820844,0.00027671,7]
[345200881,1734082243418,-467.81847514,0.00027671,7]
[345200882,1734082243430,-32.18152486,0.00027671,7]
[345200883,1734082243439,-672.01,0.00027671,7]
[345200885,1734082243449,-500.0,0.00027671,7]
[345200887,1734082243459,-500.0,0.00027671,7]
[345200888,1734082243468,-500.0,0.00027671,7]
[345200889,1734082243478,-500.0,0.00027671,7]
[345200890,1734082243488,-500.0,0.00027671,7]
[345200891,1734082243498,-2088.95,0.00027671,7]
[345200892,1734082243508,-464.18122617,0.00027671,7]
[345200897,1734082244021,-500.0,0.00027396,2]
[345200898,1734082244032,-283.74426133,0.00027396,2]
[345200899,1734082244042,-85.02161121,0.00027396,2]
[345200900,1734082244091,-414.97838879,0.00027396,2]
[345200901,1734082244101,-216.67578732,0.00027396,2]
[345200902,1734082244111,-400.85797901,0.00027396,2]
[345200903,1734082244121,-946.03999,0.00027445,15]
[345200904,1734082244130,-35.81877383,0.00027671,7]
[345200905,1734082244140,-652.69,0.00027671,7]
[345200906,1734082244149,-8.42659648,0.00027671,7]
[345202239,1734082739250,164.467672,0.00013973,2]
[345202245,1734083287149,3001.0,0.0002,2]
[345202299,1734083432174,-300.0,0.00023999,2]
[345202301,1734083432184,-36350.72279718,0.00024,2]
[345202303,1734083432193,-124431.05613848,0.000249,3]
[345202305,1734083432203,-205.0,0.00024932,2]
[345202307,1734083432212,-205.0,0.00025,2]
[345202309,1734083432221,-24900.0,0.00025849,2]
[345202311,1734083432237,-205.0,0.0002589,2]
[345202313,1734083432246,-152.0,0.00026193,2]
[345202315,1734083432257,-271.32020452,0.00026197,2]
[345202317,1734083432267,-420.492,0.0002629,2]
[345202319,1734083432277,-420.0,0.00026399,2]
[345202321,1734083432287,-1284.0897053,0.00026409,2]
[345202324,1734083432298,-169.792459,0.00026765,2]
[345202327,1734083432307,-195.0,0.00026782,2]
[345202330,1734083432316,-160.0,0.00027185,3]
[345202333,1734083432326,-212.0,0.00027185,2]
[345202336,1734083432335,-300.0,0.000273,13]
[345202339,1734083432345,-1000.0,0.000273,2]
[345202342,1734083432355,-219.04691001,0.00027373,2]
[345202345,1734083432365,-500.0,0.00027373,2]
[345202347,1734083432379,-251.0,0.00027384,2]
[345202351,1734083432390,-158.798,0.00027396,16]
[345202353,1734083432399,-626.29946665,0.00027396,2]
[345202357,1734083432411,-210.51577382,0.00027396,2]
[345202358,1734083432420,-219.6485954,0.00027396,2]
[345202360,1734083432430,-3400.21794792,0.00027397,2]
[345202363,1734083432447,-1981.82,0.00027397,2]
[345204108,1734083715901,1195.61,0.00020222,2]
[345204110,1734083722720,160.935936,0.00013973,2]
[345204783,1734084960714,160.935936,0.00013973,2]
[345204785,1734085375693,5805.40642406,0.00019782,2]
[345204788,1734085642295,1000.0,0.000235,30]
[345204789,1734085717981,1742.68726161,0.00011,2]
[345204796,1734085734452,4824.720081,0.00021,11]
[345204797,1734085743072,4684.49618459,0.00021,11]
[345204821,1734085837612,-184.8624911,0.00021596,2]
[345204823,1734085837622,-160.0,0.00022,2]
[345204825,1734085837632,-203.0,0.00023,2]
[345204827,1734085837641,-160.0,0.00023014,2]
[345204829,1734085837650,-163.0,0.00024164,2]
[345204831,1734085837665,-181.188,0.00024881,8]
[345204834,1734085837680,-201.20276918,0.00024881,8]
[345204837,1734085837691,-300.0,0.00024899,2]
[345204839,1734085837700,-1408.89675571,0.000249,2]
[345204841,1734085837712,-1244.24909123,0.000249,2]
[345204843,1734085837723,-1829.13005474,0.000249,2]
[345204902,1734085838259,-20543.97277532,0.000249,2]
[345204904,1734085838268,-120336.16531683,0.000249,3]
[345204906,1734085838279,-194.42585979,0.000249,2]
[345204907,1734085838291,-1870.6465143,0.00025,7]
[345204909,1734085838301,-403.071,0.0002629,2]
[345204911,1734085838311,-152.0,0.00026321,2]
[345204913,1734085838321,-950.8,0.00026488,15]
[345204915,1734085838330,-172.9709892,0.00026521,2]
[345204917,1734085838340,-194.0,0.00026914,2]
[345204919,1734085838349,-300.0,0.000273,13]
[345204921,1734085838359,-1000.0,0.000273,2]
[345204923,1734085838368,-500.79720908,0.00027373,2]
[345204925,1734085838378,-500.0,0.00027373,2]
[345204927,1734085838388,-482.46346098,0.00027373,2]
[345204929,1734085838397,-500.67853652,0.00027373,2]
[345204931,1734085838407,-500.0,0.00027373,2]
[345204933,1734085838417,-420.0,0.00027389,2]
[345204935,1734085838426,-220.97287557,0.00027396,2]
[345204938,1734085838436,-500.0,0.00027396,2]
[345204940,1734085838445,-500.0,0.00027396,2]
[345204943,1734085838456,-500.0,0.00027396,2]
[345204946,1734085838466,-500.0,0.00027396,2]
[345204949,1734085838475,-500.0,0.00027396,2]
[345204950,1734085838484,-500.0,0.00027396,2]
[345204951,1734085838494,-500.0,0.00027396,2]
[345204952,1734085838503,-391.90915862,0.00027396,2]
[345204953,1734085838513,-500.0,0.00027396,2]
[345204955,1734085838522,-500.0,0.00027396,2]
[345204956,1734085838531,-584.12046214,0.00027396,2]
[345204958,1734085838540,-481.00584145,0.00027396,2]
[345204960,1734085838553,-18.99415855,0.00027396,2]
[345204962,1734085838562,-500.0,0.00027396,2]
[345204964,1734085838571,-500.0,0.00027396,2]
[345204966,1734085838580,-500.0,0.00027396,2]
[345204968,1734085838590,-500.0,0.00027396,2]
[345204970,1734085838599,-500.0,0.00027396,2]
[345204972,1734085838609,-500.0,0.00027396,2]
[345204974,1734085838619,-500.0,0.00027396,2]
[345204976,1734085838628,-212.91845012,0.00027396,2]
[345204977,1734085838637,-250.0,0.00027396,2]
[345204979,1734085838647,-500.0,0.00027396,2]
[345204981,1734085838656,-500.0,0.00027396,2]
[345204983,1734085838665,-269.86447352,0.00027396,2]
[345204985,1734085838677,-230.13552648,0.00027396,2]
[345204987,1734085838687,-500.0,0.00027396,2]
[345204990,1734085838698,-500.0,0.00027396,2]
[345204991,1734085838708,-500.0,0.00027396,2]
[345204993,1734085838718,-500.0,0.00027396,2]
[345204996,1734085838728,-632.3079358,0.00027396,2]
[345204997,1734085838737,-621.38100071,0.00027396,2]
[345204999,1734085838747,-500.0,0.00027396,2]
[345205001,1734085838756,-500.0,0.00027396,2]
[345205003,1734085838765,-153.75401678,0.00027396,2]
[345205005,1734085838774,-438.40962665,0.00027396,2]
[345205007,1734085838783,-500.0,0.00027397,7]
[345205009,1734085838793,-331.03353942,0.00027397,7]
[345205011,1734085838802,-500.0,0.00027397,7]
[345205013,1734085838811,-500.0,0.00027397,7]
[345205015,1734085838821,-500.0,0.00027397,7]
[345205017,1734085838830,-500.0,0.00027397,7]
[345205019,1734085838839,-500.0,0.00027397,7]
[345205021,1734085838848,-500.0,0.00027397,7]
[345205023,1734085838858,-210.01296472,0.00027397,7]
[345205025,1734085838869,-358.45703528,0.00027397,7]
[345205027,1734085838879,-500.0,0.00027397,7]
[345205029,1734085838888,-500.0,0.00027397,7]
[345205031,1734085838897,-500.0,0.00027397,7]
[345205033,1734085838907,-574.64,0.00027397,7]
[345205035,1734085838916,-500.0,0.00027397,7]
[345205037,1734085838926,-500.0,0.00027397,7]
[345205039,1734085838935,-500.0,0.00027397,7]
[345205041,1734085838944,-23.06102797,0.00027397,7]
[345205044,1734085838960,-447.72129026,0.00027397,7]
[345205046,1734085838971,-29.21768177,0.00027397,7]
[345205048,1734085838981,-500.0,0.00027397,7]
[345205050,1734085838991,-484.56247708,0.00027397,7]
[345205052,1734085839000,-500.0,0.00027397,7]
[345205054,1734085839010,-500.0,0.00027397,7]
[345205056,1734085839018,-500.0,0.00027397,7]
[345205058,1734085839028,-500.0,0.00027397,7]
[345205060,1734085839038,-500.0,0.00027397,7]
[345205062,1734085839047,-500.0,0.00027397,7]
[345205064,1734085839057,-500.0,0.00027397,7]
[345205065,1734085839066,-472.86838105,0.00027397,7]
[345205188,1734085840321,-453.40201646,0.00027171,15]
[345205198,1734085840414,-457.23898354,0.00027171,15]
[345205200,1734085840424,-18.26256457,0.00027397,7]
[345205460,1734085843756,-8.86905438,0.00027397,7]
[345205461,1734085843767,-500.0,0.00027397,7]
[345205462,1734085843776,-500.0,0.00027397,7]
[345205463,1734085843785,-500.0,0.00027397,7]
[345205464,1734085843795,-106.0468983,0.00027397,7]
[345205465,1734085843852,-393.9531017,0.00027397,7]
[345205466,1734085843862,-492.14393006,0.00027397,7]
[345205715,1734085846420,-160.0,0.00025,2]
[345205718,1734085846430,-7.85606994,0.00027397,7]
[345205720,1734085846439,-500.0,0.00027397,7]
[345205723,1734085846449,-500.0,0.00027397,7]
[345205725,1734085846464,-500.0,0.00027397,7]
[345205727,1734085846474,-500.0,0.00027397,7]
[345205729,1734085846483,-663.74,0.00027397,7]
[345205731,1734085846493,-1411.54,0.00027397,7]
[345205733,1734085846503,-500.0,0.00027397,7]
[345205735,1734085846512,-500.0,0.00027397,7]
[345205737,1734085846522,-500.0,0.00027397,7]
[345205739,1734085846532,-500.0,0.00027397,7]
[345205742,1734085846542,-500.0,0.00027397,7]
[345205744,1734085846552,-500.0,0.00027397,7]
[345205746,1734085846562,-500.0,0.00027397,7]
[345205748,1734085846571,-500.0,0.00027397,7]
[345205750,1734085846581,-500.0,0.00027397,7]
[345205752,1734085846591,-500.0,0.00027397,7]
[345205754,1734085846601,-500.0,0.00027397,7]
[345205756,1734085846611,-500.0,0.00027397,7]
[345205758,1734085846621,-548.87,0.00027397,7]
[345205760,1734085846631,-500.0,0.00027397,7]
[345205762,1734085846640,-500.0,0.00027397,7]
[345205764,1734085846650,-500.0,0.00027397,7]
[345205766,1734085846660,-500.0,0.00027397,7]
[345205768,1734085846669,-420.61044405,0.00027397,7]
[345205770,1734085846679,-500.0,0.00027397,7]
[345205772,1734085846689,-500.0,0.00027397,7]
[345205774,1734085846699,-500.0,0.00027397,7]
[345205776,1734085846712,-500.0,0.00027397,7]
[345205778,1734085846722,-500.0,0.00027397,7]
[345205780,1734085846732,-38.8421896,0.00027397,7]
[345206557,1734085855628,179.220434,0.00013973,2]
[345206721,1734086413525,699.0,0.0002,3]
[345206722,1734086413876,698.0,0.0002,3]
[345206723,1734086414280,698.0,0.0002,3]
[345206724,1734086414586,698.0,0.0002,3]
[345206728,1734086774115,180.040239,0.00013973,2]
[345206775,1734087032532,-203.0,0.00022,2]
[345206777,1734087032543,-156.81191579,0.00022474,2]
[345206779,1734087032554,-184.8624911,0.00022574,2]
[345206782,1734087032564,-3344.42023653,0.00022651,2]
[345206793,1734087032682,-2547.90709317,0.00022651,2]
[345206795,1734087032692,-194.42585979,0.00022845,2]
[345206797,1734087032702,-152.0,0.00022945,2]
[345206799,1734087032712,-300.0,0.00022962,2]
[345206801,1734087032722,-300.0,0.00022962,2]
[345206803,1734087032733,-583.66504787,0.00022963,2]
[345207344,1734087038508,-1906.85669989,0.00022963,2]
[345207359,1734087038651,-1991.69,0.00022963,2]
[345207781,1734087043636,-787.11085515,0.00022963,2]
[345207786,1734087043681,-5368.70421649,0.00022963,2]
[345207788,1734087043692,-204.0,0.00023014,2]
[345207790,1734087043701,-170.720112,0.00023512,2]
[345207792,1734087043711,-160.535842,0.00023535,2]
[345207793,1734087043721,-160.535842,0.00023542,2]
[345207795,1734087043730,-160.535842,0.00023549,2]
[345207797,1734087043740,-160.535842,0.00023557,2]
[345207799,1734087043750,-160.535842,0.00023564,2]
[345207801,1734087043759,-160.535842,0.00023571,2]
[345207803,1734087043769,-160.535842,0.00023579,2]
[345207805,1734087043778,-160.535842,0.00023586,2]
[345207807,1734087043788,-160.535842,0.00023593,2]
[345207809,1734087043800,-160.535842,0.00023601,2]
[345207811,1734087043809,-160.535842,0.00023608,2]
[345207814,1734087043819,-160.535842,0.00023615,2]
[345207817,1734087043828,-160.535842,0.00023623,2]
[345207819,1734087043838,-160.535842,0.0002363,2]
[345207822,1734087043848,-160.535842,0.00023637,2]
[345207825,1734087043857,-160.535842,0.00023645,2]
[345207828,1734087043870,-160.535842,0.00023652,2]
[345207831,1734087043879,-22257.2684759,0.00023786,2]
[345207834,1734087043889,-250.0,0.00023827,2]
[345207836,1734087043899,-190.2275898,0.00024021,2]
[345207838,1734087043908,-1288.2465192,0.00024076,2]
[345207839,1734087043917,-200.0,0.00024658,2]
[345207841,1734087043927,-420.0,0.00024928,2]
[345207842,1734087043936,-161.0,0.00025,2]
[345207845,1734087043951,-420.0,0.00025258,2]
[345207847,1734087043965,-161.0,0.0002589,2]
[345207849,1734087043978,-7366.1849255,0.00025912,2]
[345207852,1734087043991,-318.4640012,0.00025932,2]
[345207854,1734087044004,-385.854,0.0002603,2]
[345207856,1734087044015,-201.20276918,0.00026296,13]
[345207858,1734087044025,-181.188,0.00026296,13]
[345207860,1734087044036,-587.0,0.00027061,2]
[345207862,1734087044052,-160.0,0.000272,3]
[345207864,1734087044065,-1507.62611559,0.00027274,2]
[345207866,1734087044078,-1802.18817654,0.00027296,2]
[345207869,1734087044090,-1802.1881765,0.00027296,2]
[345207871,1734087044103,-1802.1881765,0.00027297,2]
[345207873,1734087044115,-1802.1881765,0.00027297,2]
[345207875,1734087044128,-25280.14425717,0.00027297,3]
[345207877,1734087044142,-1802.1881765,0.00027297,2]
[345207879,1734087044156,-151.0,0.00027297,7]
[345207881,1734087044168,-193.032012,0.00027297,7]
[345207882,1734087044181,-300.0,0.000273,13]
[345207883,1734087044192,-1047.776486,0.000273,2]
[345207884,1734087044204,-910.808677,0.00027348,15]
[345207885,1734087044217,-500.0,0.00027373,2]
[345207886,1734087044229,-500.0,0.00027373,2]
[345207887,1734087044241,-500.0,0.00027373,2]
[345207888,1734087044255,-500.0,0.00027373,2]
[345207889,1734087044268,-500.0,0.00027373,2]
[345207890,1734087044280,-150.01,0.00027396,2]
[345207891,1734087044292,-185.05042301,0.00027396,2]
[345207892,1734087044308,-500.0,0.00027396,2]
[345207893,1734087044322,-500.0,0.00027396,2]
[345207894,1734087044333,-500.0,0.00027396,2]
[345207895,1734087044347,-500.0,0.00027396,2]
[345207896,1734087044359,-500.0,0.00027396,2]
[345207897,1734087044372,-500.0,0.00027396,2]
[345207898,1734087044384,-500.0,0.00027396,2]
[345207899,1734087044397,-500.0,0.00027396,2]
[345207900,1734087044409,-500.0,0.00027396,2]
[345207901,1734087044422,-356.10652256,0.00027396,2]